bitfinex/quotes_SOLUSD_20250424
["timestamp","ask_amount","ask_price","bid_price","bid_amount"]
[1745506534595,21.24089578,150.34,150.31,0.063]
[1745506534919,21.24089578,150.32,150.31,0.063]
[1745506535213,36.26089578,150.33,150.31,0.063]
[1745506536908,15.02,150.33,150.31,0.063]
[1745506537417,15.02,150.33,150.32,0.14216157]
[1745506537640,15.02,150.33,150.32,21.38305735]
[1745506538149,15.02,150.38,150.33,18.64964886]
[1745506538348,15.02,150.38,150.35,21.24089578]
[1745506538713,21.24089578,150.37,150.33,21.24089578]
[1745506538923,21.24089578,150.36,150.33,0.14216157]
[1745506540622,15.02,150.38,150.31,0.20516157]
[1745506540623,21.24089578,150.34,150.31,0.20516157]
[1745506540828,21.24089578,150.35,150.31,0.20516157]
[1745506541025,21.24089578,150.35,150.31,0.063]
[1745506541330,21.24089578,150.35,150.31,0.20516157]
[1745506541734,21.24089578,150.36,150.31,21.44605735]
[1745506541933,21.24089578,150.36,150.34,0.14216157]
[1745506542243,21.24089578,150.36,150.33,0.14216157]
[1745506545121,21.24089578,150.36,150.32,18.79181043]
[1745506545318,21.24089578,150.34,150.32,0.14216157]
[1745506545823,21.24089578,150.33,150.31,0.063]
[1745506547260,15.02,150.38,150.31,0.063]
[1745506547437,21.24089578,150.35,150.31,21.30389578]
[1745506547934,21.24089578,150.35,150.31,0.063]
[1745506548247,21.24089578,150.34,150.31,0.063]
[1745506548651,26.0,150.35,150.31,0.063]
[1745506548883,21.24089578,150.34,150.31,0.063]
[1745506549029,21.24089578,150.32,150.31,0.063]
[1745506549231,36.24089578,150.32,150.31,0.063]
[1745506549633,15.0,150.32,150.31,0.063]
[1745506549931,36.24089578,150.32,150.31,0.063]
[1745506550655,15.0,150.32,150.31,0.063]
[1745506551155,36.24089578,150.32,150.31,0.063]
[1745506554562,90.13426628,150.32,150.31,0.063]
[1745506554766,68.8933705,150.32,150.31,0.063]
[1745506556775,90.13426628,150.32,150.31,0.063]
[1745506557468,68.8933705,150.32,150.31,0.063]
[1745506558767,90.13426628,150.32,150.31,0.063]
[1745506558960,68.8933705,150.32,150.31,0.063]
[1745506559463,90.13426628,150.32,150.31,0.063]
[1745506560539,64.13426628,150.32,150.31,0.063]
[1745506561142,26.0,150.29,150.25,0.063]
[1745506561353,47.24089578,150.26,150.25,0.063]
[1745506561668,62.26089578,150.26,150.25,0.063]
[1745506562439,68.91602688,150.26,150.25,0.063]
[1745506563337,64.15692266,150.26,150.24,0.063]
[1745506563540,68.48179156,150.25,150.24,0.063]
[1745506564266,47.24089578,150.25,150.24,0.063]
[1745506564658,53.89646982,150.25,150.24,0.063]
[1745506565056,75.1373656,150.25,150.24,0.063]
[1745506565255,91.7763007,150.25,150.22,0.063]
[1745506565462,21.24089578,150.23,150.22,0.063]
[1745506566682,27.89735587,150.23,150.22,0.063]
[1745506567971,21.24089578,150.23,150.22,0.063]
[1745506568554,27.89735587,150.23,150.22,0.063]
[1745506568953,21.24089578,150.23,150.22,0.063]
[1745506570474,47.24089578,150.23,150.22,0.063]
[1745506574368,21.24089578,150.23,150.22,0.063]
[1745506574558,26.0,150.21,150.2,0.063]
[1745506574757,47.24089578,150.21,150.18,0.063]
[1745506574974,21.24089578,150.19,150.18,0.063]
[1745506575157,53.89912868,150.19,150.18,0.063]
[1745506575476,27.89912868,150.19,150.18,0.063]
[1745506576092,67.78967332,150.19,150.17,0.063]
[1745506576262,67.78967332,150.19,150.16,0.063]
[1745506576263,68.48179156,150.17,150.16,0.063]
[1745506576956,47.24089578,150.17,150.16,0.063]
[1745506577156,53.90001544,150.17,150.16,0.063]
[1745506577375,26.0,150.17,150.16,0.063]
[1745506577681,47.24089578,150.17,150.16,0.063]
[1745506578179,68.48179156,150.17,150.16,0.063]
[1745506578663,87.13144042,150.17,150.16,0.063]
[1745506578980,18.64964886,150.16,150.13,0.063]
[1745506579186,27.90090244,150.15,150.13,0.063]
[1745506579358,46.5505513,150.15,150.13,0.063]
[1745506580281,27.90090244,150.15,150.13,0.063]
[1745506581083,27.90090244,150.15,150.08,0.063]
[1745506581084,6.66222518,150.1,150.08,0.063]
[1745506581384,36.24089578,150.09,150.08,0.063]
[1745506582561,57.48179156,150.09,150.08,0.063]
[1745506583270,42.90356484,150.09,150.08,0.063]
[1745506583694,64.14446062,150.09,150.08,0.063]
[1745506584196,42.90356484,150.09,150.08,0.063]
[1745506586091,64.14446062,150.09,150.08,0.063]
[1745506586800,42.90356484,150.09,150.08,0.063]
[1745506588689,36.26089578,150.09,150.08,0.063]
[1745506589891,42.92356484,150.09,150.08,0.063]
[1745506591494,42.92356484,150.09,150.07,0.063]
[1745506591495,64.16446062,150.09,150.07,0.063]
[1745506591697,49.14490456,150.08,150.07,0.063]
[1745506593472,26.0,150.05,150.04,0.063]
[1745506593675,47.24089578,150.05,150.04,0.063]
[1745506593869,53.90534096,150.05,150.04,0.063]
[1745506594073,15.02,150.09,150.04,0.063]
[1745506594270,26.0,150.05,150.04,0.063]
[1745506594470,21.24089578,150.05,150.04,0.063]
[1745506594677,47.24089578,150.05,150.04,0.063]
[1745506595898,53.90534096,150.05,150.04,0.063]
[1745506596091,37.47817051,150.0,149.99,1.7191]
[1745506596291,37.47817051,150.0,149.99,22.95999578]
[1745506597695,37.47817051,150.0,149.99,1.7191]
[1745506597997,58.71906629,150.0,149.99,1.7191]
[1745506598397,37.47817051,150.0,149.99,1.7191]
[1745506598575,58.71906629,150.0,149.99,1.7191]
[1745506599400,58.71906629,150.0,149.99,0.063]
[1745506599702,65.38573295,150.0,149.99,0.063]
[1745506599879,58.71906629,150.0,149.99,0.063]
[1745506600687,37.47817051,150.0,149.99,0.063]
[1745506601803,37.47817051,150.0,149.99,21.44605735]
[1745506602007,36.97817051,150.0,149.99,21.44605735]
[1745506602185,36.97817051,150.0,149.99,1.80786157]
[1745506602386,36.97817051,150.0,149.99,23.04875735]
[1745506605109,36.97817051,150.0,149.99,48.05190621]
[1745506605318,33.64497051,150.0,149.99,75.95991313]
[1745506605519,15.02,150.07,149.99,101.95991313]
[1745506605728,15.02,150.07,150.06,40.03270621]
[1745506606101,15.02,150.07,150.06,21.38305735]
[1745506606300,15.02,150.07,150.06,0.14216157]
[1745506606617,15.02,150.07,150.05,0.14216157]
[1745506607723,36.26089578,150.07,150.04,0.14216157]
[1745506608519,15.02,150.07,150.04,0.14216157]
[1745506609023,15.02,150.07,150.04,21.38305735]
[1745506609223,15.02,150.07,150.04,0.14216157]
[1745506609739,21.24089578,150.05,150.0,18.64964886]
[1745506609932,21.24089578,150.04,150.0,39.89054464]
[1745506610141,21.24089578,150.04,150.01,0.14216157]
[1745506610315,21.24089578,150.05,150.01,21.38305735]
[1745506610516,21.24089578,150.05,150.01,0.14216157]
[1745506610910,21.24089578,150.05,150.01,21.38305735]
[1745506611805,21.24089578,150.03,150.01,0.14216157]
[1745506612005,21.24089578,150.03,149.99,29.26009578]
[1745506612231,21.24089578,150.03,149.99,21.30389578]
[1745506612429,21.24089578,150.03,149.99,0.063]
[1745506612726,21.24089578,150.02,149.99,0.063]
[1745506612928,21.24089578,150.01,149.99,0.063]
[1745506613240,21.24089578,150.0,149.99,0.063]
[1745506613407,21.24089578,150.01,149.99,0.063]
[1745506613912,26.0,150.02,150.0,0.14216157]
[1745506614102,21.24089578,150.03,150.0,0.14216157]
[1745506615733,15.02,150.07,150.0,0.14216157]
[1745506615734,6.66413311,150.06,150.0,0.14216157]
[1745506615931,21.24089578,150.03,150.0,0.14216157]
[1745506616462,21.24089578,150.03,149.99,0.063]
[1745506616610,21.24089578,150.03,150.0,0.14216157]
[1745506617242,21.24089578,150.04,150.0,0.14216157]
[1745506617827,21.24089578,150.03,150.0,0.14216157]
[1745506620036,21.24089578,150.02,150.0,0.14216157]
[1745506620246,21.24089578,150.01,149.99,0.063]
[1745506620439,36.24089578,150.01,149.99,0.063]
[1745506620751,21.24089578,150.0,149.99,0.063]
[1745506621051,36.24089578,150.01,149.99,0.20516157]
[1745506622850,21.24089578,150.0,149.99,0.063]
[1745506624224,36.24089578,150.01,149.99,0.063]
[1745506625832,15.0,150.01,150.0,21.38305735]
[1745506626830,15.0,150.01,150.0,40.03270621]
[1745506628632,36.24089578,150.05,150.01,18.64964886]
[1745506629839,21.24089578,150.04,150.01,18.64964886]
[1745506631040,15.0,150.05,150.01,18.79181043]
[1745506631471,13.64891809,150.04,150.01,18.79181043]
[1745506631951,13.64891809,150.04,150.01,0.14216157]
[1745506632752,13.64891809,150.03,150.01,0.14216157]
[1745506632940,13.64891809,150.02,150.01,0.14216157]
[1745506633260,20.31474561,150.02,149.99,0.063]
[1745506633560,13.64891809,150.0,149.99,0.063]
[1745506634858,13.64891809,150.01,149.99,0.063]
[1745506635156,26.0,150.04,150.0,13.79107966]
[1745506635338,26.0,150.04,150.02,0.14216157]
[1745506635762,39.64891809,150.04,150.02,0.14216157]
[1745506637649,13.64891809,150.03,150.0,18.79181043]
[1745506638169,13.64891809,150.02,150.0,18.79181043]
[1745506638559,13.64891809,150.03,150.0,18.79181043]
[1745506639441,13.64891809,150.03,150.0,0.14216157]
[1745506639644,39.64891809,150.04,150.0,32.44072852]
[1745506639837,26.0,150.04,150.0,32.44072852]
[1745506640148,39.64891809,150.04,150.0,32.44072852]
[1745506640467,13.64891809,150.03,150.0,18.79181043]
[1745506642261,13.64891809,150.01,149.99,18.85481043]
[1745506642465,13.64891809,150.01,149.99,0.20516157]
[1745506642639,13.64891809,150.01,149.99,0.063]
[1745506642839,13.64891809,150.01,149.99,0.20516157]
[1745506643043,13.64891809,150.01,149.99,0.063]
[1745506643678,13.64891809,150.0,149.99,0.063]
[1745506643840,20.31558475,150.0,149.99,0.063]
[1745506646939,74.91125711,150.0,149.99,0.063]
[1745506647363,20.31558475,150.0,149.99,0.063]
[1745506648259,74.91125711,150.0,149.99,0.063]
[1745506648842,74.91125711,150.0,149.98,0.063]
[1745506649042,28.64891809,149.99,149.97,0.063]
[1745506649345,13.64891809,149.98,149.97,0.063]
[1745506650564,20.31647376,149.98,149.97,0.063]
[1745506652652,39.64891809,149.98,149.97,0.063]
[1745506653069,20.31647376,149.98,149.97,0.063]
[1745506660983,26.0,149.95,149.93,0.063]
[1745506661168,13.64891809,149.94,149.93,0.063]
[1745506661362,39.64891809,149.94,149.93,0.063]
[1745506661571,46.31825249,149.94,149.93,0.063]
[1745506662082,39.64891809,149.94,149.93,0.063]
[1745506662859,26.0,149.94,149.93,0.063]
[1745506664876,39.64891809,149.94,149.93,0.063]
[1745506668275,28.64891809,149.94,149.93,0.063]
[1745506671261,35.31825249,149.94,149.93,0.063]
[1745506674168,28.64891809,149.94,149.93,0.063]
[1745506678579,61.31825249,149.94,149.93,0.063]
[1745506680082,35.31825249,149.94,149.93,0.063]
[1745506681575,61.31825249,149.94,149.93,0.063]
[1745506681777,54.64891809,149.94,149.93,0.063]
[1745506683687,61.31825249,149.94,149.93,0.063]
[1745506685319,35.31825249,149.94,149.93,0.063]
[1745506685474,61.31825249,149.94,149.93,0.063]
[1745506685681,41.0,149.94,149.93,0.063]
[1745506685983,54.64891809,149.94,149.93,0.063]
[1745506686483,61.31825249,149.94,149.93,0.063]
[1745506687800,36.85855249,149.94,149.93,0.063]
[1745506688004,91.45422485,149.94,149.93,0.063]
[1745506688205,26.0,149.92,149.91,0.063]
[1745506688397,94.24459045,149.92,149.91,0.063]
[1745506688716,94.24459045,149.92,149.88,0.063]
[1745506688879,13.64891809,149.89,149.88,0.063]
[1745506689586,26.0,149.86,149.84,0.063]
[1745506689785,28.62891809,149.85,149.84,0.063]
[1745506690187,83.22459045,149.85,149.82,0.063]
[1745506690393,68.24459045,149.84,149.82,0.063]
[1745506691278,18.72006113,149.84,149.82,0.063]
[1745506691517,44.72006113,149.84,149.82,0.063]
[1745506691680,51.3938465,149.84,149.82,0.063]
[1745506692004,25.3938465,149.84,149.82,0.063]
[1745506692194,26.0,149.83,149.82,0.063]
[1745506692503,44.72006113,149.83,149.82,0.063]
[1745506693390,26.0,149.83,149.82,0.063]
[1745506693612,59.70006113,149.83,149.82,0.063]
[1745506693995,40.98,149.83,149.82,0.063]
[1745506694186,59.70006113,149.83,149.82,0.063]
[1745506694380,40.98,149.83,149.82,0.063]
[1745506694577,59.70006113,149.83,149.79,18.70154188]
[1745506695411,18.72006113,149.82,149.79,18.64964886]
[1745506695636,18.72006113,149.82,149.78,18.64964886]
[1745506695786,18.72006113,149.82,149.77,0.063]
[1745506695986,18.72006113,149.8,149.77,0.063]
[1745506697209,18.72006113,149.79,149.77,0.063]
[1745506698888,18.72006113,149.78,149.77,0.063]
[1745506700487,44.72006113,149.78,149.77,0.063]
[1745506700883,51.39651993,149.78,149.77,0.063]
[1745506701089,44.72006113,149.78,149.77,0.063]
[1745506701597,26.0,149.78,149.77,0.063]
[1745506702897,44.72006113,149.78,149.77,0.063]
[1745506703101,18.72006113,149.78,149.77,0.063]
[1745506706918,52.95591993,149.78,149.77,0.063]
[1745506707225,26.0,149.75,149.72,0.918837]
[1745506707394,44.72006113,149.73,149.72,0.918837]
[1745506707801,63.44012226,149.73,149.72,0.918837]
[1745506708007,51.39874943,149.73,149.72,0.918837]
[1745506708210,44.11881056,149.73,149.72,0.918837]
[1745506708400,44.11881056,149.73,149.72,0.418837]
[1745506709517,25.39874943,149.73,149.72,0.418837]
[1745506710627,33.70006113,149.74,149.72,0.56099857]
[1745506710811,18.72006113,149.73,149.72,0.56099857]
[1745506711546,14.98,149.74,149.72,0.56099857]
[1745506711724,26.97377612,149.74,149.72,0.56099857]
[1745506712511,14.98,149.74,149.73,18.79181043]
[1745506712734,14.98,149.74,149.73,30.78558655]
[1745506713514,14.98,149.74,149.73,37.51702358]
[1745506713911,14.98,149.74,149.73,18.79181043]
[1745506715520,14.98,149.74,149.73,0.14216157]
[1745506719451,33.70521315,149.74,149.73,0.14216157]
[1745506721459,14.98,149.74,149.73,0.14216157]
[1745506721756,14.98,149.74,149.73,18.79181043]
[1745506722736,14.98,149.74,149.73,37.51702358]
[1745506727348,14.98,149.74,149.73,0.14216157]
[1745506728348,33.70521315,149.74,149.73,0.14216157]
[1745506730047,40.38345543,149.74,149.73,0.14216157]
[1745506730226,40.38345543,149.74,149.72,0.418837]
[1745506730427,18.72521315,149.73,149.72,0.418837]
[1745506732149,25.40390145,149.73,149.72,0.418837]
[1745506735256,18.6738281,149.73,149.72,0.418837]
[1745506736765,26.0,149.73,149.72,0.56099857]
[1745506736963,14.98,149.74,149.72,19.21064743]
[1745506737258,14.98,149.74,149.73,18.79181043]
[1745506737754,26.9751398,149.74,149.73,0.14216157]
[1745506738759,14.98,149.74,149.73,0.14216157]
[1745506739459,26.9751398,149.74,149.73,0.14216157]
[1745506740164,33.65338208,149.74,149.73,0.14216157]
[1745506740541,26.9751398,149.74,149.73,0.14216157]
[1745506741174,59.65338208,149.74,149.73,0.14216157]
[1745506741379,33.65338208,149.74,149.72,0.418837]
[1745506741666,85.975699,149.73,149.72,0.418837]
[1745506743064,92.6543873,149.73,149.72,0.418837]
[1745506743867,44.6738281,149.73,149.72,0.418837]
[1745506744270,37.9951398,149.73,149.72,0.418837]
[1745506744847,26.9751398,149.74,149.72,19.21064743]
[1745506745457,37.9951398,149.73,149.72,0.56099857]
[1745506745968,85.975699,149.73,149.72,0.418837]
[1745506747074,92.6543873,149.73,149.72,0.418837]
[1745506747474,37.9951398,149.73,149.72,0.418837]
[1745506747772,44.6738281,149.73,149.72,0.418837]
[1745506748352,37.9951398,149.73,149.72,0.418837]
[1745506749968,26.0,149.73,149.72,0.418837]
[1745506750156,37.9951398,149.73,149.72,0.418837]
[1745506751793,44.6738281,149.73,149.72,0.418837]
[1745506752280,92.6543873,149.73,149.72,0.418837]
[1745506753359,70.17484916,149.73,149.72,0.418837]
[1745506753554,44.17484916,149.73,149.72,0.418837]
[1745506756390,70.17484916,149.73,149.72,0.418837]
[1745506760693,44.17484916,149.73,149.72,0.418837]
[1745506766995,1.6179,149.72,149.71,0.063]
[1745506767297,20.36598043,149.72,149.71,0.063]
[1745506767712,27.04511481,149.72,149.71,0.063]
[1745506769390,26.0,149.69,149.66,0.20516157]
[1745506769596,18.74808043,149.67,149.66,0.20516157]
[1745506771414,18.74808043,149.67,149.66,0.063]
[1745506773314,12.00255218,149.67,149.66,0.063]
[1745506774706,26.94255218,149.68,149.66,0.063]
[1745506775107,14.94,149.68,149.66,0.063]
[1745506777202,14.94,149.68,149.67,12.00255218]
[1745506777384,14.94,149.68,149.66,13.70135218]
[1745506777875,14.94,149.68,149.66,1.6988]
[1745506779203,14.94,149.68,149.66,13.70135218]
[1745506779889,14.94,149.68,149.66,1.6988]
[1745506780225,14.94,149.68,149.66,13.70135218]
[1745506781783,14.94,149.68,149.67,30.79436261]
[1745506782118,14.94,149.72,149.67,30.79436261]
[1745506782310,14.94,149.72,149.7,12.14471375]
[1745506782806,14.94,149.72,149.71,12.00255218]
[1745506782983,14.94,149.72,149.7,12.14471375]
[1745506783496,14.94,149.72,149.71,12.00255218]
[1745506784195,14.94,149.72,149.71,30.65220104]
[1745506786323,26.0,149.78,149.71,30.79436261]
[1745506786500,14.94,149.77,149.73,12.14471375]
[1745506786901,14.94,149.77,149.75,0.14216157]
[1745506787828,26.94255218,149.77,149.75,0.14216157]
[1745506788002,12.00255218,149.76,149.71,18.64964886]
[1745506788318,12.00255218,149.76,149.72,0.14216157]
[1745506790019,26.94255218,149.77,149.72,12.14471375]
[1745506792024,26.94255218,149.77,149.74,0.14216157]
[1745506792216,14.94,149.77,149.74,0.14216157]
[1745506792398,26.94255218,149.77,149.74,0.14216157]
[1745506795931,14.94,149.77,149.74,0.14216157]
[1745506796313,26.94255218,149.77,149.74,0.14216157]
[1745506796508,0.03,149.78,149.77,18.79181043]
[1745506796701,0.03,149.78,149.77,30.79436261]
[1745506799931,0.03,149.78,149.77,37.47126719]
[1745506800706,0.03,149.78,149.77,30.79436261]
[1745506801520,0.03,149.78,149.76,0.14216157]
[1745506801717,0.03,149.78,149.77,18.64964886]
[1745506801933,0.03,149.78,149.77,30.65220104]
[1745506802130,0.03,149.78,149.77,30.79436261]
[1745506803130,0.03,149.78,149.77,56.79436261]
[1745506803438,0.03,149.78,149.77,12.14471375]
[1745506803625,0.03,149.78,149.77,12.00255218]
[1745506803827,0.03,149.78,149.74,6.67806701]
[1745506804023,0.03,149.78,149.77,12.00255218]
[1745506804228,0.03,149.78,149.77,12.14471375]
[1745506804420,0.03,149.78,149.77,30.79436261]
[1745506805811,0.03,149.78,149.77,18.64964886]
[1745506806013,0.03,149.78,149.75,18.64964886]
[1745506806319,0.03,149.78,149.75,0.14216157]
[1745506806516,0.03,149.78,149.75,12.14471375]
[1745506807122,0.03,149.78,149.77,0.14216157]
[1745506809346,0.03,149.78,149.75,12.14471375]
[1745506809722,0.03,149.78,149.77,18.79181043]
[1745506809924,0.03,149.78,149.77,30.79436261]
[1745506812025,0.03,149.78,149.77,18.79181043]
[1745506812351,0.03,149.78,149.77,12.14471375]
[1745506812728,0.03,149.78,149.77,0.14216157]
[1745506813813,12.03255218,149.78,149.74,30.65220104]
[1745506814030,12.00255218,149.77,149.74,18.64964886]
[1745506814562,12.00255218,149.77,149.75,0.14216157]
[1745506814853,52.95255218,149.78,149.75,0.14216157]
[1745506815552,12.00255218,149.77,149.75,0.14216157]
[1745506816047,52.95255218,149.78,149.75,0.14216157]
[1745506816247,40.95,149.78,149.75,0.14216157]
[1745506816553,52.95255218,149.78,149.75,0.14216157]
[1745506816756,52.95255218,149.78,149.77,0.14216157]
[1745506816757,14.95,149.78,149.77,0.14216157]
[1745506816969,14.95,149.78,149.77,30.79436261]
[1745506816970,0.03,149.78,149.77,30.79436261]
[1745506819461,0.03,149.78,149.77,18.79181043]
[1745506819822,12.03255218,149.78,149.74,18.64964886]
[1745506820030,12.03255218,149.78,149.75,0.14216157]
[1745506820262,12.00255218,149.77,149.75,0.14216157]
[1745506820730,12.00255218,149.77,149.73,12.00255218]
[1745506820931,12.00255218,149.76,149.71,18.64964886]
[1745506821147,12.00255218,149.76,149.71,30.65220104]
[1745506821454,12.00255218,149.75,149.71,0.14216157]
[1745506821952,12.00255218,149.75,149.7,12.00255218]
[1745506822442,12.00255218,149.72,149.66,18.71264886]
[1745506822632,12.00255218,149.72,149.68,18.64964886]
[1745506822835,21.59747953,149.76,149.68,18.64964886]
[1745506823040,12.00255218,149.73,149.69,0.14216157]
[1745506823351,12.00255218,149.73,149.7,18.64964886]
[1745506823531,18.73669216,149.73,149.71,0.14216157]
[1745506824354,14.92,149.76,149.73,0.14216157]
[1745506824655,18.73669216,149.75,149.73,0.14216157]
[1745506826256,14.92,149.76,149.73,0.14216157]
[1745506826431,18.73669216,149.75,149.71,0.14216157]
[1745506827335,18.73669216,149.74,149.71,0.14216157]
[1745506827538,18.73669216,149.72,149.66,37.44934102]
[1745506827838,18.73669216,149.7,149.66,18.71264886]
[1745506828545,18.73669216,149.71,149.66,37.44934102]
[1745506828934,18.73669216,149.69,149.66,0.063]
[1745506829351,18.73669216,149.69,149.66,0.20516157]
[1745506830455,27.627,149.72,149.68,18.64964886]
[1745506830658,46.36369216,149.72,149.69,0.14216157]
[1745506831358,18.73669216,149.71,149.69,0.14216157]
[1745506831757,26.0,149.72,149.69,0.14216157]
[1745506832231,18.73669216,149.73,149.69,0.14216157]
[1745506833160,18.73669216,149.72,149.69,0.14216157]
[1745506833536,18.73669216,149.7,149.67,0.14216157]
[1745506834036,18.73669216,149.69,149.67,0.14216157]
[1745506834544,14.9,149.7,149.67,0.14216157]
[1745506834746,33.63669216,149.7,149.67,0.14216157]
[1745506836163,14.9,149.7,149.66,0.20516157]
[1745506836369,33.63669216,149.7,149.66,0.20516157]
[1745506836676,18.73669216,149.69,149.66,0.20516157]
[1745506841073,14.9,149.7,149.66,0.063]
[1745506841074,18.73669216,149.67,149.66,0.063]
[1745506841465,44.73669216,149.67,149.66,0.063]
[1745506842477,51.41805783,149.67,149.66,0.063]
[1745506843369,44.73669216,149.67,149.66,0.063]
[1745506843559,51.41805783,149.67,149.66,0.063]
[1745506843866,50.62814999,149.67,149.66,0.063]
[1745506844067,52.20184999,149.67,149.65,0.063]
[1745506844269,63.47338432,149.66,149.65,0.063]
[1745506845546,70.15519642,149.66,149.65,0.063]
[1745506846174,70.15519642,149.66,149.63,0.063]
[1745506846175,86.85972668,149.66,149.63,0.063]
[1745506846380,26.0,149.61,149.6,0.063]
[1745506846579,33.63669216,149.61,149.6,0.063]
[1745506847666,26.0,149.64,149.6,0.063]
[1745506847862,33.63669216,149.63,149.6,0.20516157]
[1745506848264,14.9,149.63,149.6,18.85481043]
[1745506848468,14.9,149.63,149.6,37.59150259]
[1745506848673,14.9,149.63,149.62,37.38634102]
[1745506848971,14.9,149.63,149.62,37.52850259]
[1745506849280,14.92,149.67,149.63,0.14216157]
[1745506849578,14.92,149.67,149.65,0.14216157]
[1745506850878,18.73669216,149.66,149.6,0.063]
[1745506851178,18.73669216,149.64,149.61,0.14216157]
[1745506851479,18.73669216,149.62,149.61,0.14216157]
[1745506851972,18.73669216,149.62,149.6,0.063]
[1745506852975,26.0,149.65,149.62,18.79181043]
[1745506853652,14.92,149.65,149.62,37.52850259]
[1745506853853,14.92,149.65,149.64,18.64964886]
[1745506854068,14.92,149.65,149.62,0.14216157]
[1745506854268,14.92,149.65,149.62,18.87885373]
[1745506854683,14.92,149.65,149.63,18.64964886]
[1745506855375,14.92,149.65,149.61,0.14216157]
[1745506855576,14.92,149.65,149.63,18.79181043]
[1745506855961,14.92,149.65,149.63,0.14216157]
[1745506856956,18.73669216,149.66,149.63,0.14216157]
[1745506856957,0.03,149.73,149.65,18.79181043]
[1745506857160,18.73669216,149.71,149.68,0.14216157]
[1745506857463,18.73669216,149.69,149.66,0.14216157]
[1745506857871,18.73669216,149.7,149.66,18.87885373]
[1745506858284,18.73669216,149.69,149.66,0.14216157]
[1745506859084,18.73669216,149.67,149.6,18.71264886]
[1745506859285,18.73669216,149.64,149.6,18.71264886]
[1745506859587,18.73669216,149.64,149.61,0.14216157]
[1745506860376,33.63669216,149.66,149.63,0.14216157]
[1745506860769,14.9,149.66,149.63,0.14216157]
[1745506861265,33.63669216,149.66,149.63,0.14216157]
[1745506861570,18.73669216,149.65,149.63,0.14216157]
[1745506862088,33.63669216,149.66,149.63,0.14216157]
[1745506862270,18.73669216,149.65,149.63,0.14216157]
[1745506862875,14.9,149.66,149.65,18.79181043]
[1745506863275,14.9,149.66,149.65,0.14216157]
[1745506863568,33.63669216,149.66,149.65,0.14216157]
[1745506863885,33.63669216,149.66,149.62,18.64964886]
[1745506864091,18.73669216,149.64,149.6,0.063]
[1745506864388,18.73669216,149.65,149.61,0.14216157]
[1745506864888,18.73669216,149.64,149.61,0.14216157]
[1745506865093,18.73669216,149.63,149.61,0.14216157]
[1745506865277,18.73669216,149.62,149.6,0.063]
[1745506865590,18.73669216,149.62,149.6,0.20516157]
[1745506866096,18.73669216,149.61,149.6,0.063]
[1745506866588,25.42073734,149.61,149.6,0.063]
[1745506866984,18.73669216,149.61,149.6,0.063]
[1745506867787,18.73669216,149.62,149.6,0.063]
[1745506868295,26.0,149.62,149.6,0.063]
[1745506868493,44.73669216,149.62,149.6,0.063]
[1745506869696,18.73669216,149.61,149.6,0.063]
[1745506871097,1.5948,149.65,149.6,37.44934102]
[1745506871400,14.9,149.66,149.62,18.64964886]
[1745506871583,18.73669216,149.65,149.63,0.14216157]
[1745506871986,14.9,149.66,149.63,0.14216157]
[1745506872190,14.9,149.66,149.63,18.87885373]
[1745506872384,14.9,149.66,149.63,37.52850259]
[1745506872579,14.9,149.66,149.65,18.64964886]
[1745506872808,14.9,149.66,149.65,18.87885373]
[1745506873693,14.9,149.66,149.65,0.14216157]
[1745506874591,33.63669216,149.66,149.65,0.14216157]
[1745506874998,33.63669216,149.66,149.6,0.063]
[1745506875183,18.73669216,149.64,149.6,0.063]
[1745506875696,18.73669216,149.65,149.61,0.14216157]
[1745506875880,33.63669216,149.66,149.63,0.14216157]
[1745506876079,18.73669216,149.65,149.63,0.14216157]
[1745506877203,18.73669216,149.64,149.63,0.14216157]
[1745506877405,18.73669216,149.64,149.6,0.063]
[1745506877704,18.73669216,149.61,149.6,0.063]
[1745506878201,18.73669216,149.62,149.6,0.20516157]
[1745506878404,0.12533797,149.61,149.6,0.20516157]